[Event "NJSK 2022 Jeugd C"]
[Site "Almelo, Netherlands"]
[Date "2022.05.05"]
[Round "7.9"]
[White "Arnold, Rhys"]
[Black "Folkers, Sono"]
[Result "1-0"]
[TimeControl "90min + 30sec/move"]
[WhiteElo "1846"]
[BlackElo "1519"]

1. e4 {[%clk 01:30:59]} e6 {[%clk 01:30:57]} {[%emt 00:00:05]} 2. d4 {[%clk
01:31:25]} {[%emt 00:00:03]} d5 {[%clk 01:31:15]} {[%emt 00:00:12]} 3. Nc3
{[%clk 01:31:52]} {[%emt 00:00:03]} Bb4 {[%clk 01:31:22]} {[%emt 00:00:22]} 4.
Nge2 {[%clk 01:32:19]} {[%emt 00:00:03]} dxe4 {[%clk 01:31:27]} {[%emt
00:00:26]} 5. a3 {[%clk 01:32:46]} {[%emt 00:00:03]} Bxc3+ {[%clk 01:30:48]}
{[%emt 00:01:08]} 6. Nxc3 {[%clk 01:33:07]} {[%emt 00:00:10]} f5 {[%clk
01:31:06]} {[%emt 00:00:12]} 7. Bc4 {[%clk 01:29:30]} {[%emt 00:04:07]} Nf6
{[%clk 01:29:33]} {[%emt 00:02:03]} 8. Bg5 {[%clk 01:28:40]} {[%emt 00:01:19]}
h6 {[%clk 01:28:42]} {[%emt 00:01:20]} 9. Bxf6 {[%clk 01:28:33]} {[%emt
00:00:38]} Qxf6 {[%clk 01:25:35]} {[%emt 00:03:37]} 10. d5 {[%clk 01:27:38]}
{[%emt 00:01:26]} O-O {[%clk 01:24:28]} {[%emt 00:01:37]} 11. O-O {[%clk
01:26:53]} {[%emt 00:01:14]} Rd8 {[%clk 01:24:15]} {[%emt 00:00:44]} 12. Qe2
{[%clk 01:17:44]} {[%emt 00:09:38]} c6 {[%clk 01:23:13]} {[%emt 00:01:33]} 13.
dxe6 {[%clk 01:17:19]} {[%emt 00:00:55]} Bxe6 {[%clk 01:22:35]} {[%emt
00:01:07]} 14. Rad1 {[%clk 01:17:13]} {[%emt 00:00:36]} Nd7 {[%clk 01:22:27]}
{[%emt 00:00:39]} 15. f3 {[%clk 01:16:26]} {[%emt 00:01:17]} Ne5 {[%clk
01:17:27]} {[%emt 00:05:29]} 16. Bxe6+ {[%clk 01:16:28]} {[%emt 00:00:28]} Qxe6
{[%clk 01:17:30]} {[%emt 00:00:28]} 17. fxe4 {[%clk 01:16:40]} {[%emt
00:00:18]} fxe4 {[%clk 01:13:00]} {[%emt 00:05:00]} 18. Qxe4 {[%clk 01:16:29]}
{[%emt 00:00:41]} Re8 {[%clk 01:12:20]} {[%emt 00:01:10]} 19. Rfe1 {[%clk
01:14:59]} {[%emt 00:01:59]} Qc4 {[%clk 01:11:26]} {[%emt 00:01:25]} 20. Kh1
{[%clk 01:13:49]} {[%emt 00:01:40]} h5 {[%clk 00:58:39]} {[%emt 00:13:15]} 21.
h3 {[%clk 01:13:32]} {[%emt 00:00:49]} Qf7 {[%clk 00:49:56]} {[%emt 00:09:13]}
22. Rf1 {[%clk 01:12:16]} {[%emt 00:01:45]} Qc7 {[%clk 00:48:17]} {[%emt
00:02:10]} 23. Qh4 {[%clk 01:11:47]} {[%emt 00:00:56]} g6 {[%clk 00:46:28]}
{[%emt 00:02:21]} 24. Ne4 {[%clk 01:11:44]} {[%emt 00:00:35]} Rf8 {[%clk
00:45:43]} {[%emt 00:01:14]} 25. Nf6+ {[%clk 01:11:51]} {[%emt 00:00:23]} Kh8
{[%clk 00:44:35]} {[%emt 00:01:37]} 26. Qg5 {[%clk 01:12:06]} {[%emt 00:00:15]}
Rf7 {[%clk 00:41:09]} {[%emt 00:03:56]} 27. Qh6+ {[%clk 01:11:59]} {[%emt
00:00:37]} Rh7 {[%clk 00:41:33]} {[%emt 00:00:06]} 28. Nxh7 {[%clk 01:12:21]}
{[%emt 00:00:08]} Qxh7 {[%clk 00:42:01]} {[%emt 00:00:02]} 29. Qxh7+ {[%clk
01:12:21]} {[%emt 00:00:30]} Kxh7 {[%clk 00:42:21]} {[%emt 00:00:10]} 30. b3
{[%clk 01:12:27]} {[%emt 00:00:25]} Kg7 {[%clk 00:41:33]} {[%emt 00:01:18]} 31.
Rfe1 {[%clk 01:12:22]} {[%emt 00:00:35]} Kf6 {[%clk 00:41:11]} {[%emt
00:00:51]} 32. Rd6+ {[%clk 01:12:03]} {[%emt 00:00:49]} Ke7 {[%clk 00:40:48]}
{[%emt 00:00:53]} 33. Rd4 {[%clk 01:12:22]} {[%emt 00:00:11]} Re8 {[%clk
00:40:21]} {[%emt 00:00:58]} 34. Rxe5+ {[%clk 01:12:02]} {[%emt 00:00:49]} 1-0

[Event "NJSK 2022 Jeugd C"]
[Site "Almelo, Netherlands"]
[Date "2022.05.05"]
[Round "7.10"]
[White "Terlouw, Wouter"]
[Black "Bosma, Jonathan"]
[Result "1-0"]
[TimeControl "90min + 30sec/move"]
[WhiteElo "1578"]
[BlackElo "884"]

1. d4 {[%clk 01:30:59]} {[%emt 00:00:01]} Nf6 {[%clk 01:30:55]} {[%emt
00:00:05]} 2. c4 {[%clk 01:31:23]} {[%emt 00:00:05]} e6 {[%clk 01:31:21]}
{[%emt 00:00:05]} 3. Nf3 {[%clk 01:31:48]} {[%emt 00:00:05]} c5 {[%clk
01:30:42]} {[%emt 00:01:08]} 4. d5 {[%clk 01:32:07]} {[%emt 00:00:11]} d6
{[%clk 01:30:41]} {[%emt 00:00:32]} 5. Nc3 {[%clk 01:32:28]} {[%emt 00:00:09]}
g6 {[%clk 01:29:56]} {[%emt 00:01:15]} 6. e4 {[%clk 01:32:36]} {[%emt
00:00:21]} Qc7 {[%clk 01:27:40]} {[%emt 00:02:47]} 7. Bd3 {[%clk 01:31:52]}
{[%emt 00:01:13]} Bg7 {[%clk 01:27:36]} {[%emt 00:00:35]} 8. Bf4 {[%clk
01:32:02]} {[%emt 00:00:19]} Nh5 {[%clk 01:22:05]} {[%emt 00:06:02]} 9. Be3
{[%clk 01:30:19]} {[%emt 00:02:13]} Qa5 {[%clk 01:22:05]} {[%emt 00:00:29]} 10.
Bd2 {[%clk 01:30:03]} {[%emt 00:00:46]} a6 {[%clk 01:16:50]} {[%emt 00:05:46]}
11. O-O {[%clk 01:29:33]} {[%emt 00:00:59]} O-O {[%clk 01:12:51]} {[%emt
00:04:30]} 12. Re1 {[%clk 01:28:27]} {[%emt 00:01:36]} Nd7 {[%clk 01:12:33]}
{[%emt 00:00:48]} 13. Nb5 {[%clk 01:28:08]} {[%emt 00:00:49]} Qb6 {[%clk
01:11:37]} {[%emt 00:01:25]} 14. Qa4 {[%clk 01:28:17]} {[%emt 00:00:20]} a5
{[%clk 01:09:25]} {[%emt 00:02:44]} 15. Bc3 {[%clk 01:21:24]} {[%emt 00:07:23]}
Bxc3 {[%clk 01:06:16]} {[%emt 00:03:39]} 16. bxc3 {[%clk 01:21:26]} {[%emt
00:00:28]} e5 {[%clk 01:01:59]} {[%emt 00:04:47]} 17. Qc2 {[%clk 01:20:14]}
{[%emt 00:01:40]} Ng7 {[%clk 01:00:14]} {[%emt 00:02:18]} 18. Qd2 {[%clk
01:18:51]} {[%emt 00:01:52]} f5 {[%clk 00:58:00]} {[%emt 00:02:43]} 19. Rab1
{[%clk 01:17:33]} {[%emt 00:01:49]} f4 {[%clk 00:53:47]} {[%emt 00:04:44]} 20.
Ng5 {[%clk 01:17:04]} {[%emt 00:00:58]} Nf6 {[%clk 00:52:33]} {[%emt 00:01:45]}
21. g3 {[%clk 01:16:38]} {[%emt 00:00:56]} h6 {[%clk 00:50:04]} {[%emt
00:02:58]} 22. Nf3 {[%clk 01:14:40]} {[%emt 00:02:27]} g5 {[%clk 00:49:59]}
{[%emt 00:00:35]} 23. h4 {[%clk 01:14:30]} {[%emt 00:00:37]} Nh7 {[%clk
00:47:39]} {[%emt 00:02:54]} 24. hxg5 {[%clk 01:13:16]} {[%emt 00:01:44]} hxg5
{[%clk 00:47:39]} {[%emt 00:00:30]} 25. Nbd4 {[%clk 01:11:33]} {[%emt
00:01:58]} Qc7 {[%clk 00:45:08]} {[%emt 00:03:17]} 26. Nf5 {[%clk 01:09:18]}
{[%emt 00:02:44]} Nxf5 {[%clk 00:44:14]} {[%emt 00:01:24]} 27. exf5 {[%clk
01:09:41]} {[%emt 00:00:07]} Bxf5 {[%clk 00:44:36]} {[%emt 00:00:07]} 28. Bxf5
{[%clk 01:10:05]} {[%emt 00:00:06]} Rxf5 {[%clk 00:45:01]} {[%emt 00:00:06]} 29.
g4 {[%clk 01:09:32]} {[%emt 00:01:03]} Rf6 {[%clk 00:38:51]} {[%emt 00:06:40]}
30. Qb2 {[%clk 01:09:22]} {[%emt 00:00:39]} Rb8 {[%clk 00:37:20]} {[%emt
00:02:02]} 31. Nd2 {[%clk 01:08:49]} {[%emt 00:01:03]} Rg6 {[%clk 00:36:29]}
{[%emt 00:01:21]} 32. Qb6 {[%clk 01:08:08]} {[%emt 00:01:11]} Qd7 {[%clk
00:30:58]} {[%emt 00:06:02]} 33. f3 {[%clk 01:08:10]} {[%emt 00:00:28]} Nf6
{[%clk 00:30:09]} {[%emt 00:01:18]} 34. Qxa5 {[%clk 01:07:05]} {[%emt
00:01:35]} Rh6 {[%clk 00:16:19]} {[%emt 00:14:20]} 35. Qa7 {[%clk 01:06:13]}
{[%emt 00:01:21]} Qc8 {[%clk 00:15:15]} {[%emt 00:01:35]} 36. Re2 {[%clk
01:04:18]} {[%emt 00:02:24]} Rh3 {[%clk 00:06:20]} {[%emt 00:09:26]} 37. Rb6
{[%clk 01:01:04]} {[%emt 00:03:43]} Rg3+ {[%clk 00:05:36]} {[%emt 00:01:15]} 38.
Kf2 {[%clk 00:59:46]} {[%emt 00:01:47]} Qc7 {[%clk 00:05:10]} {[%emt 00:00:56]}
39. Re1 {[%clk 00:56:55]} {[%emt 00:03:22]} Kg7 {[%clk 00:04:58]} {[%emt
00:00:42]} 40. Reb1 {[%clk 00:56:00]} {[%emt 00:01:25]} Kg6 {[%clk 00:04:23]}
{[%emt 00:01:05]} 41. Rxb7 {[%clk 00:56:02]} {[%emt 00:00:28]} Rxb7 {[%clk
00:04:51]} {[%emt 00:00:03]} 42. Rxb7 {[%clk 00:56:15]} {[%emt 00:00:16]} Qc8
{[%clk 00:02:36]} {[%emt 00:02:44]} 43. Rg7+ {[%clk 00:55:09]} {[%emt
00:01:37]} Kh6 {[%clk 00:03:02]} {[%emt 00:00:04]} 44. Qf7 {[%clk 00:55:15]}
{[%emt 00:00:24]} Nxg4+ {[%clk 00:03:04]} {[%emt 00:00:28]} 45. fxg4 {[%clk
00:55:31]} {[%emt 00:00:14]} Rg2+ {[%clk 00:03:24]} {[%emt 00:00:10]} 46. Ke1
{[%clk 00:55:06]} {[%emt 00:00:55]} Rg1+ {[%clk 00:00:39]} {[%emt 00:03:15]} 47.
Nf1 {[%clk 00:55:20]} {[%emt 00:00:16]} Rxf1+ {[%clk 00:00:45]} {[%emt
00:00:24]} 48. Kxf1 {[%clk 00:55:44]} {[%emt 00:00:06]} Qf5 {[%clk 00:00:00]}
{[%emt 00:00:50]} 1-0

[Event "NJSK 2022 Jeugd C"]
[Site "Almelo, Netherlands"]
[Date "2022.05.05"]
[Round "7.11"]
[White "Venema, Maxime"]
[Black "Kumar, Prayan Sai"]
[Result "1-0"]
[TimeControl "90min + 30sec/move"]
[WhiteElo "1614"]
[BlackElo "1562"]

1. d4 {[%clk 01:30:56]} {[%emt 00:00:03]} Nf6 {[%clk 01:30:47]} {[%emt
00:00:14]} 2. c4 {[%clk 01:31:10]} {[%emt 00:00:15]} e6 {[%clk 01:31:11]}
{[%emt 00:00:06]} 3. Nc3 {[%clk 01:31:16]} {[%emt 00:00:24]} Bb4 {[%clk
01:31:29]} {[%emt 00:00:12]} 4. Qc2 {[%clk 01:31:27]} {[%emt 00:00:18]} O-O
{[%clk 01:31:45]} {[%emt 00:00:15]} 5. Bg5 {[%clk 01:31:22]} {[%emt 00:00:35]}
c5 {[%clk 01:29:52]} {[%emt 00:02:23]} 6. dxc5 {[%clk 01:30:10]} {[%emt
00:01:42]} Bxc5 {[%clk 01:29:31]} {[%emt 00:00:51]} 7. e3 {[%clk 01:30:07]}
{[%emt 00:00:33]} b6 {[%clk 01:27:54]} {[%emt 00:02:07]} 8. Nf3 {[%clk
01:29:11]} {[%emt 00:01:26]} Bb7 {[%clk 01:28:09]} {[%emt 00:00:15]} 9. Be2
{[%clk 01:28:53]} {[%emt 00:00:48]} Nc6 {[%clk 01:26:23]} {[%emt 00:02:16]} 10.
a3 {[%clk 01:28:23]} {[%emt 00:01:00]} Be7 {[%clk 01:25:51]} {[%emt 00:01:02]}
11. O-O {[%clk 01:26:27]} {[%emt 00:02:25]} h6 {[%clk 01:25:10]} {[%emt
00:01:12]} 12. Bf4 {[%clk 01:25:32]} {[%emt 00:01:25]} Rc8 {[%clk 01:22:31]}
{[%emt 00:03:09]} 13. b4 {[%clk 01:23:36]} {[%emt 00:02:26]} Nh5 {[%clk
01:17:11]} {[%emt 00:05:49]} 14. Bg3 {[%clk 01:19:49]} {[%emt 00:04:18]} Nxg3
{[%clk 01:17:34]} {[%emt 00:00:06]} 15. hxg3 {[%clk 01:19:50]} {[%emt
00:00:29]} Bf6 {[%clk 01:17:47]} {[%emt 00:00:17]} 16. Rad1 {[%clk 01:19:48]}
{[%emt 00:00:32]} Qe7 {[%clk 01:13:41]} {[%emt 00:04:37]} 17. Ne4 {[%clk
01:17:24]} {[%emt 00:02:54]} Rfd8 {[%clk 01:13:18]} {[%emt 00:00:54]} 18. Nd6
{[%clk 01:15:50]} {[%emt 00:02:03]} Rb8 {[%clk 01:13:05]} {[%emt 00:00:43]} 19.
Rd2 {[%clk 01:13:32]} {[%emt 00:02:48]} Ne5 {[%clk 01:09:30]} {[%emt 00:04:06]}
20. Nxe5 {[%clk 01:09:23]} {[%emt 00:04:37]} Bxe5 {[%clk 01:09:52]} {[%emt
00:00:09]} 21. Nxb7 {[%clk 01:09:49]} {[%emt 00:00:04]} Rxb7 {[%clk 01:10:15]}
{[%emt 00:00:07]} 22. Qe4 {[%clk 01:09:55]} {[%emt 00:00:24]} Bc3 {[%clk
01:08:46]} {[%emt 00:01:58]} 23. Rc2 {[%clk 01:09:08]} {[%emt 00:01:17]} d5
{[%clk 01:08:52]} {[%emt 00:00:25]} 24. cxd5 {[%clk 01:09:17]} {[%emt
00:00:21]} Rc7 {[%clk 01:08:41]} {[%emt 00:00:41]} 25. dxe6 {[%clk 01:08:57]}
{[%emt 00:00:50]} fxe6 {[%clk 01:08:11]} {[%emt 00:01:00]} 26. Bc4 {[%clk
01:08:14]} {[%emt 00:01:13]} Bf6 {[%clk 01:07:18]} {[%emt 00:01:22]} 27. Bxe6+
{[%clk 01:07:04]} {[%emt 00:01:40]} Kh8 {[%clk 01:07:33]} {[%emt 00:00:15]} 28.
Rxc7 {[%clk 01:07:20]} {[%emt 00:00:15]} Qxc7 {[%clk 01:07:56]} {[%emt
00:00:07]} 29. Qg6 {[%clk 01:07:18]} {[%emt 00:00:32]} Qc3 {[%clk 01:04:20]}
{[%emt 00:04:06]} 30. Bf5 {[%clk 01:04:58]} {[%emt 00:02:50]} Kg8 {[%clk
01:04:40]} {[%emt 00:00:09]} 31. g4 {[%clk 01:01:55]} {[%emt 00:03:34]} a5
{[%clk 00:53:29]} {[%emt 00:11:41]} 32. bxa5 {[%clk 00:58:44]} {[%emt
00:03:40]} bxa5 {[%clk 00:53:51]} {[%emt 00:00:09]} 33. Rb1 {[%clk 00:56:05]}
{[%emt 00:03:10]} Qc7 {[%clk 00:52:27]} {[%emt 00:01:53]} 34. Be4 {[%clk
00:54:09]} {[%emt 00:02:25]} a4 {[%clk 00:49:07]} {[%emt 00:03:53]} 35. g3
{[%clk 00:53:31]} {[%emt 00:01:06]} Rb8 {[%clk 00:46:56]} {[%emt 00:02:41]} 36.
Qh7+ {[%clk 00:52:31]} {[%emt 00:01:30]} Kf7 {[%clk 00:47:13]} {[%emt
00:00:13]} 37. Bd5+ {[%clk 00:52:37]} {[%emt 00:00:24]} Ke7 {[%clk 00:47:25]}
{[%emt 00:00:18]} 38. Qe4+ {[%clk 00:52:19]} {[%emt 00:00:47]} Kf8 {[%clk
00:46:43]} {[%emt 00:01:12]} 39. Rxb8+ {[%clk 00:52:01]} {[%emt 00:00:49]} Qxb8
{[%clk 00:47:06]} {[%emt 00:00:07]} 40. Bc6 {[%clk 00:50:06]} {[%emt 00:09:03]}
1-0

[Event "NJSK 2022 Jeugd C"]
[Site "Almelo, Netherlands"]
[Date "2022.05.05"]
[Round "7.12"]
[White "Franco, Hugo"]
[Black "Mohebbinezhad, Parsa"]
[Result "0-1"]
[TimeControl "90min + 30sec/move"]
[WhiteElo "1441"]
[BlackElo "1600"]

1. e4 {[%clk 01:30:45]} {[%emt 00:00:14]} c6 {[%clk 01:30:30]} {[%emt
00:00:31]} 2. d4 {[%clk 01:31:08]} {[%emt 00:00:07]} d5 {[%clk 01:30:55]}
{[%emt 00:00:05]} 3. e5 {[%clk 01:31:29]} {[%emt 00:00:09]} Bf5 {[%clk
01:31:21]} {[%emt 00:00:04]} 4. Nf3 {[%clk 01:31:18]} {[%emt 00:00:41]} e6
{[%clk 01:31:31]} {[%emt 00:00:20]} 5. c3 {[%clk 01:31:18]} {[%emt 00:00:30]}
c5 {[%clk 01:31:44]} {[%emt 00:00:16]} 6. Bb5+ {[%clk 01:28:11]} {[%emt
00:03:37]} Nc6 {[%clk 01:31:55]} {[%emt 00:00:19]} 7. Be3 {[%clk 01:23:37]}
{[%emt 00:05:04]} Qb6 {[%clk 01:31:37]} {[%emt 00:00:49]} 8. Bxc6+ {[%clk
01:21:38]} {[%emt 00:02:28]} bxc6 {[%clk 01:31:44]} {[%emt 00:00:23]} 9. b3
{[%clk 01:21:22]} {[%emt 00:00:46]} a5 {[%clk 01:31:19]} {[%emt 00:00:55]} 10.
O-O {[%clk 01:20:44]} {[%emt 00:01:09]} Bg4 {[%clk 01:31:19]} {[%emt 00:00:29]}
11. Nbd2 {[%clk 01:18:06]} {[%emt 00:03:08]} cxd4 {[%clk 01:31:10]} {[%emt
00:00:39]} 12. cxd4 {[%clk 01:14:54]} {[%emt 00:03:42]} Ne7 {[%clk 01:30:45]}
{[%emt 00:00:55]} 13. Qc2 {[%clk 01:13:42]} {[%emt 00:01:42]} Bxf3 {[%clk
01:30:10]} {[%emt 00:01:05]} 14. Nxf3 {[%clk 01:12:37]} {[%emt 00:01:35]} Nf5
{[%clk 01:29:43]} {[%emt 00:00:58]} 15. Rac1 {[%clk 01:06:34]} {[%emt
00:06:33]} Rc8 {[%clk 01:29:21]} {[%emt 00:00:51]} 16. g4 {[%clk 01:04:58]}
{[%emt 00:02:06]} Nxe3 {[%clk 01:29:24]} {[%emt 00:00:27]} 17. fxe3 {[%clk
01:05:11]} {[%emt 00:00:17]} Ba3 {[%clk 01:28:37]} {[%emt 00:01:17]} 18. Ng5
{[%clk 00:59:46]} {[%emt 00:05:55]} Bxc1 {[%clk 01:27:45]} {[%emt 00:01:22]} 19.
Nxf7 {[%clk 00:57:13]} {[%emt 00:03:03]} Bxe3+ {[%clk 01:28:02]} {[%emt
00:00:13]} 20. Kg2 {[%clk 00:55:26]} {[%emt 00:02:17]} O-O {[%clk 01:27:13]}
{[%emt 00:01:19]} 21. Nd6 {[%clk 00:49:40]} {[%emt 00:06:17]} Rxf1 {[%clk
01:26:10]} {[%emt 00:01:32]} 22. Nxc8 {[%clk 00:49:37]} {[%emt 00:00:33]} Rg1+
{[%clk 01:26:13]} {[%emt 00:00:26]} 23. Kh3 {[%clk 00:49:34]} {[%emt 00:00:33]}
Qxd4 {[%clk 01:25:44]} {[%emt 00:01:00]} 24. Qe2 {[%clk 00:49:35]} {[%emt
00:00:29]} Qf4 {[%clk 01:25:20]} {[%emt 00:00:55]} 0-1

[Event "NJSK 2022 Jeugd C"]
[Site "Almelo, Netherlands"]
[Date "2022.05.06"]
[Round "8.1"]
[White "Kumar, Prajit Sai"]
[Black "De Winter, Arthur"]
[Result "1/2-1/2"]
[TimeControl "90min + 30sec/move"]
[WhiteElo "2042"]
[BlackElo "2138"]

1. d4 {[%clk 01:30:59]} Nf6 {[%clk 01:30:54]} {[%emt 00:00:06]} 2. Nf3 {[%clk
01:31:23]} {[%emt 00:00:06]} g6 {[%clk 01:31:21]} {[%emt 00:00:03]} 3. Bg5
{[%clk 01:31:48]} {[%emt 00:00:08]} Bg7 {[%clk 01:31:47]} {[%emt 00:00:02]} 4.
Nbd2 {[%clk 01:32:11]} {[%emt 00:00:05]} O-O {[%clk 01:32:12]} {[%emt
00:00:05]} 5. e3 {[%clk 01:32:38]} {[%emt 00:00:04]} d6 {[%clk 01:28:35]}
{[%emt 00:04:07]} 6. Bc4 {[%clk 01:32:32]} {[%emt 00:00:36]} Nbd7 {[%clk
01:23:48]} {[%emt 00:05:17]} 7. O-O {[%clk 01:32:03]} {[%emt 00:00:59]} c6
{[%clk 01:23:08]} {[%emt 00:01:10]} 8. Re1 {[%clk 01:31:27]} {[%emt 00:01:05]}
Qc7 {[%clk 01:22:21]} {[%emt 00:01:18]} 9. c3 {[%clk 01:29:56]} {[%emt
00:02:01]} e5 {[%clk 01:21:26]} {[%emt 00:01:25]} 10. dxe5 {[%clk 01:30:15]}
{[%emt 00:00:11]} dxe5 {[%clk 01:20:45]} {[%emt 00:01:11]} 11. e4 {[%clk
01:30:36]} {[%emt 00:00:09]} Nc5 {[%clk 01:17:21]} {[%emt 00:03:54]} 12. Qc2
{[%clk 01:28:14]} {[%emt 00:02:52]} Ne6 {[%clk 01:09:30]} {[%emt 00:08:21]} 13.
Bh4 {[%clk 01:26:50]} {[%emt 00:01:54]} Nf4 {[%clk 01:08:44]} {[%emt 00:01:16]}
14. Bf1 {[%clk 01:25:40]} {[%emt 00:01:40]} Be6 {[%clk 01:04:47]} {[%emt
00:04:27]} 15. Nc4 {[%clk 01:25:15]} {[%emt 00:00:55]} Ne8 {[%clk 00:58:12]}
{[%emt 00:07:05]} 16. Bg3 {[%clk 01:17:27]} {[%emt 00:08:17]} f6 {[%clk
00:55:15]} {[%emt 00:03:27]} 17. Nfd2 {[%clk 01:11:57]} {[%emt 00:06:01]} Nh5
{[%clk 00:49:18]} {[%emt 00:06:27]} 18. a4 {[%clk 00:58:46]} {[%emt 00:13:42]}
Nxg3 {[%clk 00:46:38]} {[%emt 00:03:08]} 19. hxg3 {[%clk 00:59:10]} {[%emt
00:00:07]} Rd8 {[%clk 00:46:14]} {[%emt 00:00:54]} 20. b4 {[%clk 00:47:24]}
{[%emt 00:12:16]} Kh8 {[%clk 00:38:56]} {[%emt 00:07:47]} 21. Rad1 {[%clk
00:37:10]} {[%emt 00:10:45]} f5 {[%clk 00:30:19]} {[%emt 00:09:07]} 22. exf5
{[%clk 00:34:59]} {[%emt 00:02:40]} gxf5 {[%clk 00:30:08]} {[%emt 00:00:41]} 23.
Nf3 {[%clk 00:31:04]} {[%emt 00:04:25]} e4 {[%clk 00:27:29]} {[%emt 00:03:10]}
24. Ng5 {[%clk 00:29:20]} {[%emt 00:02:13]} Bg8 {[%clk 00:26:07]} {[%emt
00:01:52]} 25. Nh3 {[%clk 00:27:59]} {[%emt 00:01:52]} Nf6 {[%clk 00:24:38]}
{[%emt 00:01:59]} 26. Ne3 {[%clk 00:26:50]} {[%emt 00:01:38]} Nd5 {[%clk
00:23:54]} {[%emt 00:01:15]} 27. g4 {[%clk 00:22:03]} {[%emt 00:05:17]} Nxe3
{[%clk 00:14:29]} {[%emt 00:09:55]} 28. fxe3 {[%clk 00:22:10]} {[%emt
00:00:23]} Rxd1 {[%clk 00:14:27]} {[%emt 00:00:32]} 29. Rxd1 {[%clk 00:22:31]}
{[%emt 00:00:09]} Qg3 {[%clk 00:14:50]} {[%emt 00:00:07]} 30. Qf2 {[%clk
00:21:16]} {[%emt 00:01:44]} Qxf2+ {[%clk 00:12:42]} {[%emt 00:02:40]} 31. Nxf2
{[%clk 00:21:39]} {[%emt 00:00:06]} Bxc3 {[%clk 00:13:08]} {[%emt 00:00:04]} 32.
gxf5 {[%clk 00:21:52]} {[%emt 00:00:17]} Rxf5 {[%clk 00:12:27]} {[%emt
00:01:11]} 33. Nxe4 {[%clk 00:22:12]} {[%emt 00:00:10]} Bxb4 {[%clk 00:12:55]}
{[%emt 00:00:02]} 34. Rd7 {[%clk 00:20:23]} {[%emt 00:02:18]} Rf7 {[%clk
00:11:34]} {[%emt 00:01:51]} 35. Rd8 {[%clk 00:20:33]} {[%emt 00:00:20]} Rf8
{[%clk 00:10:58]} {[%emt 00:01:06]} 36. Rd7 {[%clk 00:20:56]} {[%emt 00:00:06]}
Rf7 {[%clk 00:10:09]} {[%emt 00:01:19]} 37. Rd8 {[%clk 00:21:15]} {[%emt
00:00:11]} Rf8 {[%clk 00:09:40]} {[%emt 00:00:59]} 38. Rd7 {[%emt 00:05:02]}
1/2-1/2

[Event "NJSK 2022 Jeugd C"]
[Site "Almelo, Netherlands"]
[Date "2022.05.06"]
[Round "8.2"]
[White "Ponomarev, Ivan"]
[Black "Van Batenburg, Mees"]
[Result "0-1"]
[TimeControl "90min + 30sec/move"]
[WhiteElo "1744"]
[BlackElo "1713"]

1. e4 {[%clk 01:30:58]} {[%emt 00:00:02]} c5 {[%clk 01:30:57]} {[%emt
00:00:03]} 2. Nf3 {[%clk 01:31:25]} {[%emt 00:00:05]} Nc6 {[%clk 01:31:23]}
{[%emt 00:00:02]} 3. Bb5 {[%clk 01:31:51]} {[%emt 00:00:04]} g6 {[%clk
01:30:33]} {[%emt 00:01:20]} 4. O-O {[%clk 01:31:28]} {[%emt 00:00:53]} Bg7
{[%clk 01:30:45]} {[%emt 00:00:18]} 5. c3 {[%clk 01:31:12]} {[%emt 00:00:46]}
e5 {[%clk 01:30:44]} {[%emt 00:00:31]} 6. d4 {[%clk 01:31:02]} {[%emt
00:00:41]} cxd4 {[%clk 01:30:51]} {[%emt 00:00:23]} 7. cxd4 {[%clk 01:31:23]}
{[%emt 00:00:09]} exd4 {[%clk 01:31:18]} {[%emt 00:00:03]} 8. Bf4 {[%clk
01:31:25]} {[%emt 00:00:28]} a6 {[%clk 01:31:40]} {[%emt 00:00:08]} 9. Ba4
{[%clk 01:25:43]} {[%emt 00:06:12]} Nge7 {[%clk 01:30:50]} {[%emt 00:01:20]} 10.
Bd6 {[%clk 01:23:08]} {[%emt 00:03:05]} b5 {[%clk 01:25:54]} {[%emt 00:05:26]}
11. Bb3 {[%clk 01:23:20]} {[%emt 00:00:18]} Bb7 {[%clk 01:25:29]} {[%emt
00:00:55]} 12. Ng5 {[%clk 01:12:08]} {[%emt 00:11:43]} O-O {[%clk 01:25:24]}
{[%emt 00:00:34]} 13. f4 {[%clk 01:09:22]} {[%emt 00:03:16]} h6 {[%clk
01:18:40]} {[%emt 00:07:14]} 14. Nxf7 {[%clk 01:00:43]} {[%emt 00:09:09]} Rxf7
{[%clk 01:17:55]} {[%emt 00:01:15]} 15. f5 {[%clk 00:53:32]} {[%emt 00:07:41]}
gxf5 {[%clk 01:12:06]} {[%emt 00:06:18]} 16. exf5 {[%clk 00:52:35]} {[%emt
00:01:28]} Bf6 {[%clk 00:54:13]} {[%emt 00:18:24]} 17. Qg4+ {[%clk 00:30:52]}
{[%emt 00:22:11]} Kf8 {[%clk 00:40:10]} {[%emt 00:14:34]} 18. Bxf7 {[%clk
00:24:17]} {[%emt 00:07:05]} Kxf7 {[%clk 00:40:29]} {[%emt 00:00:11]} 19. Qh5+
{[%clk 00:24:27]} {[%emt 00:00:20]} Kg7 {[%clk 00:39:54]} {[%emt 00:01:05]} 20.
Rf3 {[%clk 00:20:30]} {[%emt 00:04:25]} Qe8 {[%clk 00:39:03]} {[%emt 00:01:23]}
21. Rg3+ {[%clk 00:19:40]} {[%emt 00:01:20]} Kh7 {[%clk 00:38:52]} {[%emt
00:00:42]} 22. Qh3 {[%clk 00:18:07]} {[%emt 00:02:01]} Nc8 {[%clk 00:37:17]}
{[%emt 00:02:07]} 23. Bf4 {[%clk 00:17:46]} {[%emt 00:00:49]} Qe1# {[%clk
00:37:43]} {[%emt 00:00:05]} 0-1